bitfinex/quotes_ETHUSD_20251024
["timestamp","ask_amount","ask_price","bid_price","bid_amount"]
[1761311738749,7.41637706,3964.2,3964.1,0.002]
[1761311738953,2.52177706,3964.2,3964.1,0.002]
[1761311739130,2.5225308,3964.3,3964.1,0.002]
[1761311739330,2.52257706,3964.2,3964.1,0.002]
[1761311739545,0.001,3964.6,3964.1,0.002]
[1761311739747,2.52257706,3964.2,3964.1,0.002]
[1761311739965,2.52251906,3964.3,3964.1,0.002]
[1761311740178,2.52253004,3964.3,3964.1,0.002]
[1761311740358,0.50688,3964.2,3964.1,0.002]
[1761311740563,3.02945706,3964.2,3964.1,0.002]
[1761311740781,0.50688,3964.2,3964.1,0.002]
[1761311740987,0.001,3964.6,3964.1,0.002]
[1761311741137,2.52238665,3964.5,3964.1,0.25467222]
[1761311741345,0.50688,3964.4,3964.1,0.25467222]
[1761311741834,3.02928402,3964.5,3964.1,0.25467222]
[1761311742030,0.001,3964.6,3964.1,0.25467222]
[1761311742247,0.001,3964.6,3964.1,0.002]
[1761311742847,2.52251508,3964.3,3964.1,0.002]
[1761311743054,0.50688,3964.3,3964.1,0.002]
[1761311743268,3.02945706,3964.2,3964.1,0.002]
[1761311743782,0.50688,3964.2,3964.1,0.002]
[1761311744661,3.02945706,3964.2,3964.1,0.002]
[1761311745166,0.50688,3964.2,3964.1,0.002]
[1761311745537,3.02945706,3964.2,3964.1,0.002]
[1761311748373,5.13984844,3964.2,3964.1,0.002]
[1761311749061,5.26624844,3964.2,3964.1,0.002]
[1761311749266,4.71105706,3964.2,3964.1,0.002]
[1761311754989,7.79565706,3964.2,3964.1,0.002]
[1761311755280,7.79665706,3964.2,3964.1,0.002]
[1761311759578,7.79665706,3964.2,3963.7,0.002]
[1761311759579,2.52275218,3964.0,3963.7,0.002]
[1761311759882,2.52275218,3964.0,3963.6,0.002]
[1761311759883,4.58497527,3963.7,3963.6,0.002]
[1761311760384,4.58417527,3963.7,3963.6,0.002]
[1761311762163,3.17672629,3963.8,3963.6,0.002]
[1761311762367,0.001,3964.2,3963.6,0.002]
[1761311762589,0.001,3964.2,3963.6,2.52491616]
[1761311762767,0.001,3964.2,3963.7,3.02769123]
[1761311762963,0.001,3964.2,3963.7,0.50479919]
[1761311763381,0.001,3964.2,3963.7,2.52287382]
[1761311763581,0.001,3964.2,3963.7,2.52289527]
[1761311764085,0.50788,3964.2,3963.6,2.52495082]
[1761311764289,0.001,3964.2,3963.9,2.52271064]
[1761311764487,0.001,3964.2,3963.9,2.5227047]
[1761311764688,0.001,3964.2,3964.0,3.34835707]
[1761311764891,0.001,3964.2,3964.1,5.69936699]
[1761311765568,0.001,3964.2,3964.1,2.5226407]
[1761311765785,0.001,3964.2,3964.1,5.82576699]
[1761311766282,0.001,3964.2,3964.1,6.41141697]
[1761311766491,0.001,3964.2,3964.1,7.79438543]
[1761311767304,0.001,3964.2,3964.1,7.11660916]
[1761311767674,0.001,3964.2,3964.1,3.90560916]
[1761311767873,0.001,3964.2,3964.1,7.11660916]
[1761311768591,0.001,3964.2,3964.1,7.24300916]
[1761311769876,0.001,3964.2,3964.1,10.41973545]
[1761311770119,0.001,3964.2,3964.1,12.65271172]
[1761311770298,0.001,3964.2,3964.1,12.10233545]
[1761311772198,0.001,3964.2,3964.1,8.89133545]
[1761311772407,0.001,3964.2,3964.1,12.77790076]
[1761311772608,0.001,3964.2,3964.1,9.56790076]
[1761311772788,0.001,3964.2,3964.1,10.54613545]
[1761311774713,0.001,3964.2,3964.1,7.33613545]
[1761311775010,0.001,3964.2,3964.1,10.54613545]
[1761311778018,0.001,3964.2,3964.1,10.49613545]
[1761311778408,0.001,3964.2,3964.1,10.49513545]
[1761311778614,0.001,3964.2,3964.1,12.05033545]
[1761311778919,0.001,3964.2,3964.1,12.72690076]
[1761311780394,0.66705393,3967.7,3964.7,0.002]
[1761311780738,0.001,3969.5,3964.7,0.002]
[1761311780739,0.001,3969.5,3969.0,2.51952632]
[1761311781045,0.001,3969.5,3969.0,12.50976366]
[1761311781400,0.001,3969.5,3969.4,4.07447243]
[1761311781633,0.001,3969.5,3969.4,11.73660788]
[1761311781957,0.001,3969.5,3969.4,11.79511629]
[1761311782265,0.001,3969.5,3969.4,14.97184258]
[1761311782416,1.39978,3975.1,3972.4,3.17672629]
[1761311782750,9.59220405,3974.7,3971.2,11.04924879]
[1761311783042,9.59220405,3973.9,3970.7,0.67001988]
[1761311783360,9.59220405,3973.9,3970.3,1.89]
[1761311783361,9.59220405,3973.3,3971.9,0.75566845]
[1761311783643,9.59220405,3973.3,3969.8,2.51901426]
[1761311783644,9.59220405,3972.6,3969.3,0.67001988]
[1761311783827,9.59220405,3972.6,3969.5,0.53446153]
[1761311783828,1.5552,3971.7,3969.5,0.53446153]
[1761311784152,0.50688,3971.6,3970.4,0.75597313]
[1761311784301,2.51771947,3971.9,3970.5,3.276]
[1761311784516,0.40729195,3971.8,3970.5,3.30118574]
[1761311784712,9.59220405,3972.5,3970.4,0.75597313]
[1761311785017,1.5552,3972.4,3970.5,3.276]
[1761311785220,2.51800448,3971.4,3970.5,3.276]
[1761311785414,2.51800711,3971.4,3970.5,3.276]
[1761311785622,0.25180071,3971.3,3970.5,3.276]
[1761311786227,0.50688,3971.6,3970.5,3.276]
[1761311786432,0.50688,3971.6,3970.5,2.5185436]
[1761311786671,0.50688,3971.8,3970.6,3.275]
[1761311786836,0.50688,3971.4,3970.6,3.275]
[1761311787139,0.50688,3971.4,3969.6,2.51914143]
[1761311787140,2.06208,3971.5,3969.9,2.51895513]
[1761311787344,0.50688,3971.2,3970.0,3.275]
[1761311787537,0.50688,3971.2,3970.3,0.75601123]
[1761311787876,0.50688,3971.2,3970.5,2.51856781]
[1761311788055,0.50688,3971.3,3970.6,3.29918511]
[1761311788267,9.59220405,3973.6,3971.1,2.51818611]
[1761311788438,2.06208,3972.2,3971.2,5.79113014]
[1761311788643,2.06208,3972.2,3971.3,1.942]
[1761311788948,0.50688,3972.4,3971.3,1.942]
[1761311789181,0.50688,3972.4,3971.4,2.51794313]
[1761311789347,0.50688,3972.4,3971.3,1.942]
[1761311789348,2.06208,3972.5,3971.5,0.0251794]
[1761311789547,0.206208,3972.4,3971.3,1.942]
[1761311789753,2.51668303,3973.5,3971.6,2.51786643]
[1761311790077,2.5173082,3972.5,3971.5,2.51793201]
[1761311790277,2.51673629,3973.4,3971.3,4.46001147]
[1761311790278,1.5552,3972.3,3971.3,4.46001147]
[1761311790440,2.06208,3972.1,3971.3,1.942]
[1761311790637,3.02445224,3972.1,3971.1,2.51818986]
[1761311790855,0.50688,3971.9,3971.4,3.277]
[1761311791455,0.50688,3971.9,3970.3,0.75601123]
[1761311791456,2.51780741,3971.8,3970.5,2.51851587]
[1761311791664,0.30244522,3972.0,3970.3,0.75601123]
[1761311791665,0.1256,3970.4,3970.3,0.75601123]
[1761311792047,0.1256,3970.4,3970.3,3.276]
[1761311792762,0.63248,3970.4,3970.3,3.276]
[1761311793773,0.1256,3970.4,3970.3,3.276]
[1761311794282,0.63248,3970.4,3970.3,3.276]
[1761311795175,0.50688,3970.3,3970.1,3.275]
[1761311795485,0.1256,3969.7,3969.5,2.51914785]
[1761311795650,0.1256,3969.7,3969.6,3.272]
[1761311795845,0.1256,3969.7,3969.6,5.7911455]
[1761311797604,0.1256,3969.7,3969.6,3.272]
[1761311797750,0.1256,3969.7,3969.4,2.51922588]
[1761311797751,0.50688,3970.3,3969.0,0.002]
[1761311798080,0.50688,3969.9,3969.1,5.0724183]
[1761311798255,0.50688,3969.7,3969.4,2.51926346]
[1761311798660,0.50688,3970.1,3969.4,2.51926346]
[1761311799273,3.02559488,3970.3,3969.5,2.51920291]
[1761311799455,0.50688,3970.3,3969.5,2.51920291]
[1761311799872,0.50688,3970.1,3969.4,2.51925441]
[1761311800080,0.50688,3969.9,3969.3,2.51933097]
[1761311800278,0.50688,3969.9,3969.2,2.51939057]
[1761311800759,0.50688,3969.9,3969.1,2.553]
[1761311801086,0.50688,3970.3,3969.4,2.51927243]
[1761311801288,2.51772791,3971.9,3969.4,2.51927243]
[1761311801289,0.50688,3970.4,3969.6,2.51909563]
[1761311801468,0.35323918,3970.3,3969.7,2.51905735]
[1761311802189,0.35323918,3970.3,3969.8,3.29319018]
[1761311802387,1.5552,3970.9,3970.1,2.51881362]
[1761311802388,2.51836337,3970.9,3970.1,2.51881362]
[1761311802554,2.5183842,3970.8,3969.9,2.5189484]
[1761311802754,0.50688,3971.3,3969.8,3.268]
[1761311802988,0.50688,3970.4,3969.9,0.5337815]
[1761311803200,0.50688,3970.5,3969.6,2.51914479]
[1761311803409,0.45806069,3970.4,3970.0,3.267]
[1761311803964,3.02523178,3970.9,3970.0,3.267]
[1761311804191,3.02532729,3970.8,3970.0,3.267]
[1761311804395,0.50688,3970.4,3970.0,3.267]
[1761311805261,0.50688,3970.4,3970.1,0.53548379]
[1761311805495,0.50688,3970.4,3970.2,0.53548379]
[1761311805697,0.30254582,3970.3,3970.0,3.267]
[1761311805995,0.30254582,3970.3,3970.1,0.53547764]
[1761311806194,0.30254582,3970.3,3970.2,0.53547764]
[1761311806397,0.50688,3970.7,3970.2,0.53547764]
[1761311806560,0.50688,3970.7,3970.3,0.53547764]
[1761311806761,3.0252642,3970.8,3970.0,5.78583965]
[1761311806961,0.50688,3970.7,3970.1,0.53619728]
[1761311807299,0.50688,3970.7,3970.2,1.20621716]
[1761311807471,0.50688,3970.5,3970.3,0.53619728]
[1761311807671,0.50688,3970.5,3970.2,0.67001988]
[1761311807672,0.50688,3970.5,3970.4,0.53619728]
[1761311808080,0.63248,3970.5,3970.4,0.53619728]
[1761311808266,0.63168,3970.5,3970.4,0.53619728]
[1761311808464,0.1256,3970.5,3970.4,0.53619728]
[1761311808682,0.1256,3970.5,3970.4,3.79819728]
[1761311809002,5.78001208,3971.4,3970.4,3.79819728]
[1761311809003,6.34,3972.9,3970.4,6.08906477]
[1761311809164,2.51771905,3971.9,3971.3,0.67250057]
[1761311809507,1.5552,3971.8,3971.5,0.67250057]
[1761311809661,1.5552,3971.8,3971.2,0.89666743]
[1761311809662,1.5552,3971.8,3971.6,0.53619728]
[1761311809868,2.51770743,3971.9,3971.7,0.53619728]
[1761311810081,0.001,3971.6,3971.4,0.67250057]
[1761311810287,0.001,3971.6,3971.5,0.53922846]
[1761311810567,0.001,3971.6,3971.5,3.80222846]
[1761311810807,0.001,3971.6,3971.5,3.263]
[1761311811411,0.001,3971.6,3971.5,5.78094032]
[1761311812786,0.001,3971.6,3971.4,1.35192971]
[1761311813127,0.30356148,3971.6,3971.5,3.94304275]
[1761311813298,0.001,3971.6,3971.5,3.94304275]
[1761311813501,0.001,3971.6,3971.5,6.68633066]
[1761311813897,0.001,3971.6,3971.5,4.16839034]
[1761311814189,0.001,3971.6,3971.5,3.267]
[1761311815328,0.001,3971.6,3970.9,0.67619555]
[1761311815529,0.50688,3971.2,3970.8,3.266]
[1761311815703,0.86006414,3971.2,3970.8,3.266]
[1761311815911,0.001,3971.6,3970.8,3.266]
[1761311815912,0.50688,3971.0,3970.8,3.266]
[1761311816529,2.51826922,3971.0,3970.8,3.266]
[1761311816731,2.51826922,3971.0,3969.6,1.5572]
[1761311816732,2.51845361,3970.7,3969.8,0.67619555]
[1761311816931,0.50688,3970.5,3969.7,0.67619555]
[1761311817108,2.51868218,3970.4,3969.9,3.266]
[1761311817302,0.55440921,3970.3,3969.9,3.266]
[1761311817697,2.51882143,3970.2,3969.9,3.266]
[1761311817926,0.50688,3970.1,3969.9,3.266]
[1761311818235,2.51884108,3970.1,3969.9,3.266]
[1761311818408,0.50688,3970.0,3969.9,3.266]
[1761311818592,2.51889059,3970.1,3969.7,3.264]
[1761311818793,0.50688,3970.0,3969.7,3.264]
[1761311819036,0.1256,3969.8,3969.7,3.264]
[1761311820227,3.15149859,3969.8,3969.7,3.264]
[1761311820741,3.02596204,3969.7,3969.6,0.002]
[1761311820910,4.58116204,3969.7,3969.6,0.002]
[1761311821112,5.30373843,3969.7,3969.6,0.002]
[1761311824501,4.58116204,3969.7,3969.6,0.002]
[1761311827422,7.83916204,3969.7,3969.6,0.002]
[1761311828004,1.5552,3969.7,3969.6,0.002]
[1761311828199,0.1256,3969.8,3969.6,0.002]
[1761311829004,0.1256,3969.8,3969.6,0.25664611]
[1761311829208,9.35194359,3971.6,3969.6,0.25664611]
[1761311829209,0.001,3971.6,3970.1,2.51880386]
[1761311829574,0.001,3971.6,3971.5,2.51794032]
[1761311829831,0.001,3971.6,3971.5,5.78094032]
[1761311830008,0.001,3971.6,3971.5,6.61083668]
[1761311831244,0.001,3971.6,3971.5,2.51794032]
[1761311831404,0.001,3971.6,3971.5,5.78094032]
[1761311832309,0.0002,3971.6,3971.5,3.262]
[1761311832820,0.0002,3971.6,3971.5,5.77994032]
[1761311833712,0.0002,3971.6,3971.5,3.262]
[1761311834228,0.0002,3971.6,3970.2,1.5552]
[1761311834229,0.0002,3971.6,3970.9,2.5183063]
[1761311834433,0.0002,3971.6,3971.3,3.261]
[1761311835410,0.50688,3971.5,3969.1,4.40741983]
[1761311835609,3.02482374,3971.5,3970.6,2.51848667]
[1761311835841,3.02482374,3971.5,3970.7,3.259]
[1761311835842,0.50688,3971.1,3970.7,3.259]
[1761311836245,1.5552,3971.2,3970.7,3.259]
[1761311836449,0.50688,3971.0,3970.7,3.259]
[1761311837240,0.0002,3971.6,3970.8,0.02518384]
[1761311837414,0.0002,3971.6,3971.1,2.51814686]
[1761311837619,0.0002,3971.6,3971.1,2.51817698]
[1761311838555,0.0002,3971.6,3971.2,3.26]
[1761311838723,0.0002,3971.6,3971.2,5.77812096]
[1761311839317,0.0002,3971.6,3971.2,3.26]
[1761311839845,0.0002,3971.6,3971.3,2.51806713]
[1761311840028,0.0002,3971.6,3971.2,3.26]
[1761311840450,0.0002,3971.6,3971.4,2.51799887]
[1761311840646,0.0002,3971.6,3971.5,2.51794032]
[1761311843746,0.0002,3971.6,3971.2,5.77810481]
[1761311844079,0.0002,3971.6,3971.2,3.26]
[1761311844602,0.0002,3971.6,3971.2,3.255]
[1761311844603,2.51802915,3971.4,3971.2,3.255]
[1761311844779,0.25182291,3971.3,3971.2,3.255]
[1761311847090,2.76989004,3971.3,3971.2,3.255]
[1761311847391,4.58021053,3971.2,3971.1,0.002]
[1761311848072,7.83521053,3971.2,3971.1,0.002]
[1761311848386,8.89572059,3971.2,3971.1,0.002]
[1761311849273,9.02132059,3971.2,3971.1,0.002]
[1761311851999,5.76632059,3971.2,3971.1,0.002]
[1761311852160,5.13384059,3971.2,3971.1,0.002]
[1761311852658,5.64072059,3971.2,3971.1,0.002]
[1761311856290,6.1722167,3971.2,3971.1,0.002]
[1761311857401,4.58065448,3970.5,3970.4,0.002]
[1761311857602,8.29071993,3970.5,3970.4,0.002]
[1761311861273,5.03871993,3970.5,3970.4,0.002]
[1761311861469,8.28871993,3970.5,3970.4,0.002]
[1761311861699,7.78183993,3970.5,3970.4,0.002]
[1761311861910,8.28871993,3970.5,3970.4,0.002]
[1761311862085,7.90743993,3970.5,3970.4,0.002]
[1761311862407,8.41431993,3970.5,3970.4,0.002]
[1761311862608,0.1256,3970.5,3970.4,0.002]
[1761311863506,0.50688,3970.6,3970.4,0.002]
[1761311863681,3.02545448,3970.5,3970.4,0.002]
[1761311864506,4.58065448,3970.5,3970.4,0.002]
[1761311864869,7.82965448,3970.5,3970.4,0.002]
[1761311865204,8.86446884,3970.5,3970.4,0.002]
[1761311866584,0.50688,3970.5,3970.4,0.002]
[1761311866796,3.02545448,3970.5,3970.4,0.002]
[1761311867015,0.50688,3970.5,3970.4,0.002]
[1761311867189,3.02545448,3970.5,3970.4,0.002]
[1761311868382,2.51918275,3971.2,3970.4,0.002]
[1761311868383,0.001,3971.2,3970.4,0.002]
[1761311868719,0.001,3971.2,3970.4,2.52063755]
[1761311868927,0.001,3971.2,3970.7,2.51841338]
[1761311869090,0.001,3971.2,3970.8,2.51837651]
[1761311869291,0.001,3971.2,3970.8,2.51837776]
[1761311869691,0.001,3971.2,3970.5,0.25206376]
[1761311869896,0.001,3971.2,3970.9,2.51831672]
[1761311870815,0.001,3971.2,3970.4,0.002]
[1761311871003,0.001,3971.2,3970.8,2.51836094]
[1761311871203,0.001,3971.2,3970.4,0.002]
[1761311871385,0.001,3971.2,3971.1,2.51819395]
[1761311872886,0.001,3971.2,3970.9,3.247]
[1761311873084,0.001,3971.2,3971.0,2.51823828]
[1761311873288,0.001,3971.2,3971.1,2.51819395]
[1761311873720,0.1266,3971.2,3971.1,2.51819395]
[1761311876010,0.001,3971.2,3971.1,2.51819395]
[1761311876414,0.001,3971.2,3971.0,2.5182039]
[1761311877109,0.001,3971.2,3970.9,3.82353828]
[1761311877110,0.001,3971.2,3970.9,3.247]
[1761311877425,0.001,3971.2,3971.0,5.76221147]
[1761311877597,0.001,3971.2,3971.1,2.51819395]
[1761311877798,0.001,3971.2,3971.0,5.76220633]
[1761311878518,0.001,3971.2,3971.0,3.244]
[1761311878705,0.001,3971.2,3970.7,3.242]
[1761311879325,0.001,3971.2,3970.7,5.76044227]
[1761311880092,2.51919212,3971.2,3970.7,3.242]
[1761311880410,0.50608,3970.9,3970.7,3.242]
[1761311880810,0.25291921,3971.2,3970.7,3.242]
[1761311881116,2.5182083,3971.1,3970.7,3.242]
[1761311881331,0.001,3971.2,3970.7,3.242]
[1761311881499,0.001,3971.2,3970.8,2.54355855]
[1761311881819,0.001,3971.2,3970.8,2.5183842]
[1761311882232,0.001,3971.2,3970.9,2.51832037]
[1761311882427,0.001,3971.2,3970.7,3.242]
[1761311882730,0.001,3971.2,3970.8,0.3242]
[1761311882916,0.001,3971.2,3970.8,2.51832603]
[1761311883306,0.001,3971.2,3970.8,2.51837012]
[1761311883707,0.001,3971.2,3970.9,3.241]
[1761311884405,0.001,3971.2,3971.0,2.51825639]
[1761311885733,0.001,3971.2,3970.9,5.75929847]
[1761311886130,0.1256,3971.0,3970.9,3.241]
[1761311886742,0.1256,3971.0,3970.8,2.52037752]
[1761311886743,0.1256,3971.0,3970.8,0.002]
[1761311886918,0.1256,3971.0,3970.9,3.239]
[1761311887944,3.15073736,3971.0,3970.9,3.239]
[1761311888142,0.63248,3971.0,3970.9,3.239]
[1761311889542,0.1256,3971.0,3970.9,3.239]
[1761311890219,0.1256,3971.0,3970.9,5.75732078]
[1761311890837,0.1256,3971.0,3970.9,3.239]
[1761311893340,0.1256,3971.0,3970.9,5.75732078]
[1761311893514,0.001,3971.2,3971.1,2.51819395]
[1761311900062,0.001,3971.2,3971.1,2.54337588]
[1761311902273,0.001,3971.2,3971.1,2.51819395]
[1761311902872,0.001,3971.2,3971.1,5.74819395]
[1761311903072,0.001,3971.2,3971.1,3.23]
[1761311903660,0.1266,3971.2,3971.1,3.23]
[1761311904168,0.1258,3971.2,3971.1,3.23]
[1761311905937,0.1258,3971.2,3971.1,5.74819395]
[1761311906353,0.1258,3971.2,3971.1,3.23]
[1761311908776,0.1258,3971.2,3970.9,2.52031177]
[1761311908777,0.50688,3971.1,3970.9,0.002]
[1761311908946,4.70593736,3971.0,3970.9,0.002]
[1761311909272,6.03211951,3971.0,3970.9,0.002]
[1761311909456,6.69777907,3971.0,3970.9,0.002]
[1761311910375,6.03211951,3971.0,3970.9,0.002]
[1761311910970,6.69777907,3971.0,3970.9,0.002]
[1761311911170,6.03211951,3971.0,3970.9,0.002]
[1761311911876,9.26011951,3971.0,3970.9,0.002]
[1761311914963,6.03211951,3971.0,3970.9,0.002]
[1761311915169,9.25711951,3971.0,3970.9,0.002]
[1761311915581,6.03211951,3971.0,3970.9,0.002]
[1761311915782,3.18104136,3971.0,3970.9,0.002]
[1761311915991,2.64385736,3971.0,3970.9,0.002]
[1761311916492,3.15073736,3971.0,3970.9,0.002]
[1761311916796,0.1256,3971.0,3970.9,0.002]
[1761311917294,2.64385736,3971.0,3970.9,0.002]
[1761311917489,3.82247662,3971.0,3970.9,0.002]
[1761311917690,5.37767662,3971.0,3970.9,0.002]
[1761311920295,5.9156687,3971.0,3970.9,0.002]
[1761311925599,9.1386687,3971.0,3970.9,0.002]
[1761311928275,9.1378687,3971.0,3970.9,0.002]
[1761311928474,5.9148687,3971.0,3970.9,0.002]
[1761311928806,9.1368687,3971.0,3970.9,0.002]
[1761311929508,9.1376687,3971.0,3970.9,0.002]
[1761311929819,9.13741664,3971.0,3970.9,0.002]
[1761311930590,5.91541664,3971.0,3970.9,0.002]
[1761311930776,9.13741664,3971.0,3970.9,0.002]
[1761311931202,5.40853664,3971.0,3970.9,0.002]
[1761311931506,5.24367738,3971.0,3970.9,0.002]
[1761311932301,0.1256,3971.0,3970.9,0.002]
[1761311932536,3.15073736,3971.0,3970.9,0.002]
[1761311933503,3.02513736,3971.0,3970.9,0.002]
[1761311933837,3.15073736,3971.0,3970.9,0.002]
[1761311934935,4.70593736,3971.0,3970.9,0.002]
[1761311935301,5.24445817,3971.0,3970.9,0.002]
[1761311935799,5.24545817,3971.0,3970.9,0.002]
[1761311937009,3.69025817,3971.0,3970.9,0.002]
[1761311937343,3.69009554,3971.0,3970.9,0.002]
[1761311939348,0.63348,3971.0,3970.9,0.002]
[1761311939547,0.1266,3971.0,3970.9,0.002]
[1761311940512,0.1266,3971.0,3970.9,2.77255893]
[1761311940747,0.1266,3971.0,3970.9,2.79774213]
[1761311941050,0.1266,3971.0,3970.9,3.47523815]
[1761311941457,0.1266,3971.0,3970.9,5.99355893]
[1761311941844,0.1266,3971.0,3970.9,0.25423815]
[1761311942154,0.1266,3971.0,3970.9,0.002]
[1761311945238,0.1266,3971.0,3970.9,0.0271832]
[1761311945436,0.1266,3971.0,3970.9,2.52032078]
[1761311945437,0.001,3971.0,3970.9,2.52032078]
[1761311945637,0.001,3971.0,3970.9,2.54550398]
[1761311945837,0.001,3971.0,3970.9,4.22630398]
[1761311946046,0.001,3971.0,3970.9,4.90097418]
[1761311947774,0.001,3971.0,3970.9,4.87579098]
[1761311947927,0.001,3971.0,3970.9,8.09679098]
[1761311952028,0.001,3971.0,3970.9,8.19754931]
[1761311952233,0.0002,3971.0,3970.9,8.19754931]
[1761311952859,0.0002,3971.0,3970.9,11.99303757]
[1761311953850,0.0002,3971.0,3970.9,15.81303757]
[1761311954746,0.0002,3971.0,3970.9,11.99303757]
[1761311955595,1e-08,3972.0,3971.9,2.51768674]
[1761311955764,1e-08,3972.0,3971.9,11.34314367]
[1761311956164,1e-08,3972.0,3971.9,0.25176867]
[1761311956407,1e-08,3972.0,3971.5,2.783]
[1761311956981,0.50688,3971.8,3971.1,3.227]
[1761311957179,2.51790613,3971.6,3971.1,3.227]
[1761311957662,1e-08,3972.0,3971.1,3.227]
[1761311957864,1e-08,3972.0,3971.4,2.51795549]
[1761311958064,1e-08,3972.0,3971.1,3.5501]
[1761311958279,1e-08,3972.0,3971.7,2.51781256]
[1761311958674,1e-08,3972.0,3971.1,3.5501]
[1761311958874,1e-08,3972.0,3971.2,2.51808022]
[1761311959081,1e-08,3972.0,3971.1,3.227]
[1761311959378,1e-08,3972.0,3971.4,2.518003]
[1761311959581,1e-08,3972.0,3971.5,2.51791717]
[1761311959895,1e-08,3972.0,3971.6,2.51786033]
[1761311960045,1e-08,3972.0,3970.9,0.002]
[1761311960250,2.51798423,3971.5,3970.9,0.002]
[1761311960495,2.5180107,3971.4,3970.9,0.002]
[1761311960794,0.50688,3971.8,3971.0,2.51825519]
[1761311960952,1e-08,3972.0,3971.2,2.51812213]
[1761311961151,2.51768811,3971.9,3971.2,2.51812213]
[1761311961348,1e-08,3972.0,3971.1,0.57492552]
[1761311961552,3.02464145,3971.8,3971.1,2.51819341]
[1761311961753,2.51782128,3971.7,3970.9,2.5203202]
[1761311961954,0.50688,3971.6,3970.9,0.002]
[1761311962177,2.51800881,3971.4,3970.9,0.002]
[1761311962372,2.51795717,3971.5,3970.9,0.002]
[1761311963281,2.51798736,3971.5,3970.9,0.002]
[1761311963481,2.51801964,3971.4,3970.9,0.002]
[1761311963682,3.02477864,3971.6,3970.9,0.002]
[1761311964283,0.50688,3971.6,3971.0,2.51824998]
[1761311964855,0.50688,3971.6,3971.0,2.51821247]
[1761311965055,2.5176899,3971.9,3971.0,2.51821247]
[1761311965287,0.50688,3971.7,3971.0,2.51821247]
[1761311965584,0.1256,3971.1,3970.9,0.002]
[1761311965787,0.1256,3971.1,3970.9,2.52029711]
[1761311966078,0.1256,3971.1,3971.0,2.51825736]
[1761311966583,0.001,3972.4,3971.7,2.51775372]
[1761311966885,0.50788,3972.4,3971.7,5.74375372]
[1761311967108,2.51839701,3972.4,3971.7,5.74375372]
[1761311967258,2.51744099,3972.3,3971.7,3.226]
[1761311967695,0.001,3972.4,3971.7,3.226]
[1761311967696,2.51752086,3972.2,3971.7,3.226]
[1761311967879,2.51779057,3971.8,3971.0,2.51821023]
[1761311968063,2.5178308,3971.7,3971.1,3.226]
[1761311968389,1e-08,3972.0,3971.1,3.226]
[1761311968754,1e-08,3972.0,3971.5,2.5179402]
[1761311968984,1e-08,3972.0,3971.6,3.227]
[1761311969181,1e-08,3972.0,3971.6,5.7448345]
[1761311969379,1e-08,3972.0,3971.7,0.02517813]
[1761311969757,1e-08,3972.0,3971.7,2.54297799]
[1761311970394,1e-08,3972.0,3971.9,2.51768674]
[1761311972337,1e-08,3972.0,3971.7,0.82879038]
[1761311972489,1e-08,3972.0,3971.9,2.51768674]
[1761311975762,1e-08,3972.0,3971.6,3.227]
[1761311976200,0.001,3972.4,3971.7,3.229]
[1761311976201,0.00020001,3972.4,3971.7,3.229]
[1761311976386,0.00020001,3972.4,3971.8,3.229]
[1761311976586,0.00020001,3972.4,3972.2,2.51748487]
[1761311976799,0.00020001,3972.4,3972.3,3.23]
[1761311977295,0.12580001,3972.4,3972.1,5.74755736]
[1761311977606,0.00020001,3972.4,3972.2,2.51748895]
[1761311977800,0.00020001,3972.4,3972.1,3.23]
[1761311977990,0.1256,3972.2,3972.1,3.23]
[1761311980209,0.1256,3972.2,3972.0,2.51756135]
[1761311981276,0.1256,3972.2,3972.1,2.51755998]
[1761311981476,0.00020001,3972.4,3972.1,3.232]
[1761311981676,0.1256,3972.2,3972.1,3.232]
[1761311985104,0.1256,3972.2,3972.1,5.74955998]
[1761311986108,0.1256,3972.2,3972.1,3.232]
[1761311990512,0.1256,3972.2,3972.1,5.74955998]
[1761311990677,0.00020001,3972.4,3972.3,2.51743322]
[1761311991097,0.12580001,3972.4,3972.3,2.51743322]
[1761311992437,0.00020001,3972.4,3972.3,2.51743322]
[1761311992742,0.00020001,3972.4,3972.3,5.70425367]
[1761311992922,0.00020001,3972.4,3972.3,5.67907934]
[1761311993135,0.00020001,3972.4,3972.3,6.89199378]
[1761311993306,0.00020001,3972.4,3972.3,3.73034766]
[1761311995527,0.00020001,3972.4,3972.3,6.95734766]
[1761311997943,0.00020001,3972.4,3972.3,4.43991444]
[1761311998114,0.00020001,3972.4,3972.3,3.227]
[1761311998450,0.00020001,3972.4,3972.3,5.74443322]
[1761312000214,0.00040001,3972.8,3972.6,2.51718174]
[1761312000410,0.00040001,3972.8,3972.7,3.226]
[1761312001745,3.0243964,3972.8,3972.7,3.226]
[1761312001945,3.89470534,3972.8,3971.8,2.51773913]
[1761312002144,2.51734514,3972.5,3971.9,3.226]
[1761312002380,5.6791174,3972.3,3971.1,0.002]
[1761312002514,2.51764999,3972.0,3971.2,3.226]
[1761312002926,0.50688,3972.2,3971.2,3.226]
[1761312002927,0.1256,3971.4,3971.2,3.226]
[1761312003932,0.1256,3971.4,3971.3,2.51806713]
[1761312004758,0.1256,3971.4,3971.2,3.226]
[1761312005429,0.1256,3971.4,3971.3,2.51806713]
[1761312005935,3.18890865,3972.8,3971.3,0.82642449]
[1761312006145,1.5552,3972.5,3971.8,2.51770703]
[1761312006347,1.5552,3972.5,3971.3,0.82642449]
[1761312006348,2.51722693,3972.7,3971.9,3.227]
[1761312006554,0.00040001,3972.8,3972.1,2.5175062]
[1761312006766,0.00040001,3972.8,3972.2,3.227]